fUSD/lending_fUSD_20240119
["ID","MTS","AMOUNT","RATE_DAILY","PERIOD"]
[312136195,1705666302135,-907.94,0.00023817,2]
[312136196,1705666302147,-915.25,0.00023817,2]
[312136197,1705666302159,-953.2,0.00023817,2]
[312136198,1705666302170,-554.43,0.00023817,2]
[312136199,1705666302180,-500.0,0.00023817,2]
[312136200,1705666302191,-500.0,0.00023817,2]
[312136201,1705666302203,-592.33,0.00023817,2]
[312136202,1705666302214,-865.14,0.00023817,2]
[312136203,1705666302225,-500.0,0.00023817,2]
[312136204,1705666302237,-500.0,0.00023817,2]
[312136205,1705666302250,-694.6,0.00023817,2]
[312136206,1705666302261,-500.0,0.00023817,2]
[312136207,1705666302272,-500.0,0.00023817,2]
[312136208,1705666302283,-699.21,0.00023817,2]
[312136209,1705666302294,-634.28,0.00023817,2]
[312136210,1705666302305,-500.0,0.00023817,2]
[312136211,1705666302317,-500.0,0.00023817,2]
[312136212,1705666302328,-1018.36,0.00023817,2]
[312136213,1705666302340,-988.95,0.00023817,2]
[312136214,1705666302351,-700.19,0.00023817,2]
[312136215,1705666302363,-500.0,0.00023817,2]
[312136216,1705666302375,-500.0,0.00023817,2]
[312136217,1705666302386,-500.0,0.00023817,2]
[312136218,1705666302398,-727.89,0.00023817,2]
[312136219,1705666302409,-500.0,0.00023817,2]
[312136220,1705666302421,-1090.17,0.00023817,2]
[312136221,1705666302432,-500.0,0.00023817,2]
[312136222,1705666302443,-500.0,0.00023817,2]
[312136223,1705666302454,-500.0,0.00023817,2]
[312136224,1705666302466,-1289.78,0.00023817,2]
[312136225,1705666302478,-500.0,0.00023817,2]
[312136226,1705666302490,-500.0,0.00023817,2]
[312136227,1705666302501,-1120.95,0.00023817,2]
[312136228,1705666302514,-1300.86,0.00023817,2]
[312136229,1705666302525,-698.1,0.00023817,2]
[312136230,1705666302536,-906.66,0.00023817,2]
[312136231,1705666302548,-500.0,0.00023817,2]
[312136232,1705666302560,-919.21,0.00023817,2]
[312136233,1705666302571,-500.0,0.00023817,2]
[312136234,1705666302583,-500.0,0.00023817,2]
[312136235,1705666302594,-545.64,0.00023817,2]
[312136236,1705666302605,-500.0,0.00023817,2]
[312136237,1705666302617,-250.91447176,0.00023817,2]
[312136238,1705666302630,-1384.85,0.00023817,2]
[312136239,1705666302642,-363.81999479,0.00023817,2]
[312136240,1705666302654,-500.0,0.00023817,2]
[312136241,1705666302666,-977.33,0.00023817,2]
[312136242,1705666302677,-500.0,0.00023817,2]
[312136243,1705666302689,-500.0,0.00023817,2]
[312136244,1705666302700,-1012.68,0.00023817,2]
[312136245,1705666302711,-1000.0,0.00023817,2]
[312136246,1705666302724,-190.92935029,0.00023817,2]
[312136247,1705666302735,-500.0,0.00023817,2]
[312136248,1705666302746,-1136.47,0.00023817,2]
[312136249,1705666302759,-500.0,0.00023817,2]
[312136250,1705666302771,-785.17,0.00023817,2]
[312136251,1705666302782,-500.0,0.00023817,2]
[312136252,1705666302794,-500.0,0.00023817,2]
[312136253,1705666302805,-462.99014488,0.00023817,2]
[312136254,1705666302816,-500.0,0.00023817,2]
[312136255,1705666302828,-648.64,0.00023817,2]
[312136256,1705666302839,-500.0,0.00023817,2]
[312136257,1705666302850,-1005.41,0.00023817,2]
[312136258,1705666302861,-500.0,0.00023817,2]
[312136259,1705666302876,-500.0,0.00023817,2]
[312136260,1705666302887,-730.87,0.00023817,2]
[312136261,1705666302900,-756.0,0.00023817,2]
[312136262,1705666302912,-709.1,0.00023817,2]
[312136263,1705666302923,-681.37,0.00023817,2]
[312136264,1705666302935,-500.0,0.00023817,2]
[312136265,1705666302948,-500.0,0.00023817,2]
[312136266,1705666302962,-500.0,0.00023817,2]
[312136267,1705666302974,-626.37,0.00023817,2]
[312136268,1705666302986,-500.0,0.00023817,2]
[312136269,1705666302998,-500.0,0.00023817,2]
[312136270,1705666303009,-500.0,0.00023817,2]
[312136271,1705666303021,-500.0,0.00023817,2]
[312136272,1705666303032,-500.0,0.00023817,2]
[312136273,1705666303043,-500.0,0.00023817,2]
[312136274,1705666303054,-500.0,0.00023817,2]
[312136275,1705666303066,-926.69,0.00023817,2]
[312136276,1705666303078,-617.42,0.00023817,2]
[312136277,1705666303090,-500.0,0.00023817,2]
[312136278,1705666303103,-618.52,0.00023817,2]
[312136279,1705666303114,-500.0,0.00023817,2]
[312136280,1705666303126,-500.0,0.00023817,2]
[312136281,1705666303137,-500.0,0.00023817,2]
[312136282,1705666303149,-500.0,0.00023817,2]
[312136283,1705666303163,-530.48,0.00023817,2]
[312136284,1705666303176,-500.0,0.00023817,7]
[312136285,1705666303188,-500.0,0.00023817,2]
[312136286,1705666303199,-500.0,0.00023817,2]
[312136287,1705666303211,-500.0,0.00023817,2]
[312136288,1705666303223,-500.0,0.00023817,2]
[312136289,1705666303233,-500.0,0.00023817,2]
[312136290,1705666303246,-596.7,0.00023817,2]
[312136291,1705666303257,-651.28,0.00023817,2]
[312136292,1705666303269,-869.05,0.00023817,2]
[312136293,1705666303281,-813.98,0.00023817,2]
[312136294,1705666303293,-858.03,0.00023817,2]
[312136295,1705666303305,-1255.83,0.00023817,2]
[312136296,1705666303317,-500.0,0.00023817,2]
[312136297,1705666303328,-500.0,0.00023817,2]
[312136298,1705666303340,-522.15465076,0.00023817,2]
[312136299,1705666303352,-500.0,0.00023817,2]
[312136300,1705666303364,-500.0,0.00023817,2]
[312136301,1705666303376,-1127.81,0.00023817,2]
[312136302,1705666303387,-737.1,0.00023817,2]
[312136303,1705666303398,-500.0,0.00023817,2]
[312136304,1705666303409,-933.45,0.00023817,2]
[312136305,1705666303421,-500.0,0.00023817,2]
[312136306,1705666303433,-1285.45,0.00023817,2]
[312136307,1705666303445,-799.51,0.00023817,2]
[312136308,1705666303457,-500.0,0.00023817,2]
[312136309,1705666303469,-500.0,0.00023817,2]
[312136310,1705666303481,-1604.6,0.00023817,2]
[312136311,1705666303491,-532.89462835,0.00023817,2]
[312136312,1705666303503,-565.02,0.00023817,2]
[312136313,1705666303514,-500.0,0.00023817,2]
[312136314,1705666303525,-500.0,0.00023817,2]
[312136315,1705666303536,-500.0,0.00023817,2]
[312136316,1705666303548,-500.0,0.00023817,2]
[312136317,1705666303559,-500.0,0.00023817,2]
[312136318,1705666303570,-520.46,0.00023817,2]
[312136319,1705666303582,-500.0,0.00023817,2]
[312136320,1705666303593,-500.0,0.00023817,2]
[312136321,1705666303605,-728.86,0.00023817,2]
[312136322,1705666303616,-1264.15,0.00023817,2]
[312136323,1705666303627,-500.0,0.00023817,2]
[312136324,1705666303637,-649.55,0.00023817,2]
[312136325,1705666303648,-500.0,0.00023817,2]
[312136326,1705666303659,-511.23,0.00023817,2]
[312136327,1705666303672,-500.0,0.00023817,2]
[312136328,1705666303684,-977.19,0.00023817,2]
[312136329,1705666303695,-500.0,0.00023817,2]
[312136330,1705666303706,-1528.44,0.00023817,2]
[312136331,1705666303717,-500.0,0.00023817,2]
[312136332,1705666303729,-500.0,0.00023817,2]
[312136333,1705666303740,-500.0,0.00023817,2]
[312136334,1705666303752,-1679.82,0.00023817,2]
[312136335,1705666303763,-627.3,0.00023817,2]
[312136336,1705666303774,-500.0,0.00023817,2]
[312136337,1705666303787,-500.0,0.00023817,2]
[312136338,1705666303799,-500.0,0.00023817,2]
[312136339,1705666303811,-500.0,0.00023817,2]
[312136340,1705666303824,-1835.52,0.00023817,2]
[312136341,1705666303836,-9652.13,0.00023817,2]
[312136342,1705666304059,-515.26,0.00023817,2]
[312136343,1705666304072,-500.0,0.00023817,2]
[312136344,1705666304084,-500.0,0.00023817,2]
[312136345,1705666304096,-500.0,0.00023817,2]
[312136346,1705666304108,-500.0,0.00023817,2]
[312136347,1705666304120,-500.0,0.00023817,2]
[312136348,1705666304131,-1150.41,0.00023817,2]
[312136349,1705666304143,-4685.36,0.00023817,2]
[312136350,1705666304155,-500.0,0.00023817,2]
[312136351,1705666304169,-500.0,0.00023817,2]
[312136352,1705666304181,-500.0,0.00023817,2]
[312136353,1705666304193,-500.0,0.00023817,2]
[312136354,1705666304206,-1244.76,0.00023817,2]
[312136355,1705666304217,-836.26,0.00023817,2]
[312136356,1705666304229,-2001.17,0.00023817,2]
[312136357,1705666304241,-643.71,0.00023817,2]
[312136358,1705666304252,-500.0,0.00023817,2]
[312136359,1705666304264,-500.0,0.00023817,2]
[312136360,1705666304276,-500.0,0.00023817,2]
[312136361,1705666304288,-500.0,0.00023817,2]
[312136362,1705666304300,-500.0,0.00023817,2]
[312136363,1705666304312,-673.35,0.00023817,2]
[312136364,1705666304324,-500.0,0.00023817,2]
[312136365,1705666304337,-504.87,0.00023817,2]
[312136366,1705666304348,-771.28,0.00023817,2]
[312136367,1705666304359,-500.0,0.00023817,2]
[312136368,1705666304370,-500.0,0.00023817,2]
[312136369,1705666304383,-1538.26,0.00023817,2]
[312136370,1705666304395,-5075.2,0.00023817,2]
[312136371,1705666304406,-500.0,0.00023817,2]
[312136372,1705666304420,-1267.24,0.00023817,2]
[312136373,1705666304430,-1264.86,0.00023817,2]
[312136374,1705666304441,-500.0,0.00023817,2]
[312136375,1705666304452,-1609.06,0.00023817,2]
[312136376,1705666304463,-847.45,0.00023817,2]
[312136377,1705666304475,-500.0,0.00023817,2]
[312136378,1705666304486,-500.0,0.00023817,2]
[312136379,1705666304498,-500.0,0.00023817,2]
[312136380,1705666304509,-990.0,0.00023817,2]
[312136381,1705666304521,-505.52107586,0.00023817,2]
[312136382,1705666304532,-500.0,0.00023817,2]
[312136383,1705666304543,-3252.2,0.00023817,2]
[312136384,1705666304554,-500.0,0.00023817,2]
[312136385,1705666304566,-500.0,0.00023817,2]
[312136386,1705666304578,-577.79619073,0.00023817,2]
[312136387,1705666304590,-500.0,0.00023817,2]
[312136388,1705666304602,-3626.74,0.00023817,2]
[312136389,1705666304613,-500.0,0.00023817,2]
[312136390,1705666304625,-500.0,0.00023817,2]
[312136391,1705666304637,-500.0,0.00023817,2]
[312136392,1705666304649,-770.99,0.00023817,2]
[312136393,1705666304662,-758.67,0.00023817,2]
[312136394,1705666304673,-518.11276965,0.00023817,2]
[312136395,1705666304685,-500.0,0.00023817,2]
[312136396,1705666304696,-500.0,0.00023817,2]
[312136397,1705666304708,-7664.11,0.00023817,2]
[312136398,1705666304719,-11303.55,0.00023817,2]
[312136399,1705666304731,-500.0,0.00023817,2]
[312136400,1705666304743,-902.16,0.00023817,2]
[312136401,1705666304755,-500.0,0.00023817,2]
[312136402,1705666304766,-500.0,0.00023817,2]
[312136403,1705666304778,-6250.14,0.00023817,2]
[312136404,1705666304790,-500.0,0.00023817,2]
[312136405,1705666304802,-500.0,0.00023817,2]
[312136406,1705666304814,-500.0,0.00023817,2]
[312136407,1705666304826,-664.96,0.00023817,2]
[312136408,1705666304837,-714.13,0.00023817,2]
[312136409,1705666304849,-462.13,0.00023817,2]
[312136410,1705666304860,-868.24,0.00023817,2]
[312136411,1705666304874,-500.0,0.00023817,2]
[312136412,1705666304886,-2960.31,0.00023817,2]
[312136413,1705666304898,-9834.44,0.00023817,2]
[312136414,1705666304912,-500.0,0.00023817,2]
[312136415,1705666304924,-2320.43,0.00023817,2]
[312136416,1705666304936,-500.0,0.00023817,2]
[312136417,1705666304947,-500.0,0.00023817,2]
[312136418,1705666304962,-500.0,0.00023817,2]
[312136419,1705666304974,-5976.03,0.00023817,2]
[312136420,1705666304986,-500.0,0.00023817,2]
[312136421,1705666304999,-1820.94,0.00023817,2]
[312136422,1705666305013,-823.03,0.00023817,2]
[312136423,1705666305027,-509.90097738,0.00023817,2]
[312136424,1705666305040,-500.0,0.00023817,2]
[312136425,1705666305053,-500.0,0.00023817,2]
[312136426,1705666305066,-505.81,0.00023817,2]
[312136427,1705666305078,-1021.23,0.00023817,2]
[312136428,1705666305091,-645.27,0.00023817,2]
[312136429,1705666305103,-796.93,0.00023817,2]
[312136430,1705666305114,-500.0,0.00023817,2]
[312136431,1705666305126,-500.0,0.00023817,2]
[312136432,1705666305138,-500.0,0.00023817,2]
[312136433,1705666305149,-500.0,0.00023817,2]
[312136434,1705666305161,-1032.88,0.00023817,2]
[312136435,1705666305173,-500.0,0.00023817,2]
[312136436,1705666305185,-500.0,0.00023817,2]
[312136437,1705666305197,-506.89544502,0.00023817,2]
[312136438,1705666305209,-560.11,0.00023817,2]
[312136439,1705666305219,-1063.08,0.00023817,2]
[312136440,1705666305231,-978.62,0.00023817,2]
[312136441,1705666305243,-3550.01,0.00023817,2]
[312136442,1705666305254,-500.0,0.00023817,2]
[312136443,1705666305266,-804.89,0.00023817,2]
[312136444,1705666305277,-500.0,0.00023817,2]
[312136445,1705666305290,-500.0,0.00023817,2]
[312136446,1705666305301,-500.0,0.00023817,2]
[312136447,1705666305313,-500.0,0.00023817,2]
[312136448,1705666305324,-964.83,0.00023817,2]
[312136449,1705666305336,-1091.51,0.00023817,2]
[312136450,1705666305347,-500.0,0.00023817,2]
[312136451,1705666305358,-758.43,0.00023817,2]
[312136452,1705666305369,-500.0,0.00023817,2]
[312136453,1705666305380,-11177.61,0.00023817,2]
[312136454,1705666305393,-705.91,0.00023817,2]
[312136455,1705666305405,-817.94,0.00023817,2]
[312136456,1705666305419,-500.0,0.00023817,2]
[312136457,1705666305431,-440.30593959,0.00023817,2]
[312136458,1705666305442,-528.91420835,0.00023817,2]
[312136459,1705666305454,-1738.46,0.00023817,2]
[312136460,1705666305465,-500.0,0.00023817,2]
[312136461,1705666305476,-500.0,0.00023817,2]
[312136462,1705666305488,-586.32809514,0.00023817,2]
[312136463,1705666305500,-514.09621993,0.00023817,2]
[312136464,1705666305512,-500.0,0.00023817,2]
[312136465,1705666305523,-500.0,0.00023817,2]
[312136466,1705666305535,-609.36,0.00023817,2]
[312136467,1705666305548,-500.0,0.00023817,2]
[312136468,1705666305559,-806.41,0.00023817,2]
[312136469,1705666305571,-1056.96,0.00023817,2]
[312136470,1705666305583,-500.0,0.00023817,2]
[312136471,1705666305594,-7058.53,0.00023817,2]
[312136472,1705666305606,-500.0,0.00023817,2]
[312136473,1705666305618,-275.28441409,0.00023817,2]
[312136474,1705666305630,-500.0,0.00023817,2]
[312136475,1705666305642,-500.0,0.00023817,2]
[312136476,1705666305653,-500.0,0.00023817,2]
[312136477,1705666305665,-500.0,0.00023817,2]
[312136478,1705666305677,-500.0,0.00023817,2]
[312136479,1705666305688,-500.0,0.00023817,2]
[312136480,1705666305700,-500.0,0.00023817,2]
[312136481,1705666305711,-500.0,0.00023817,2]
[312136482,1705666305723,-500.0,0.00023817,2]
[312136483,1705666305734,-729.56,0.00023817,2]
[312136484,1705666305747,-500.0,0.00023817,2]
[312136485,1705666305757,-500.0,0.00023817,2]
[312136486,1705666305768,-3169.29,0.00023817,2]
[312136487,1705666305780,-500.0,0.00023817,2]
[312136488,1705666305791,-1141.43,0.00023817,2]
[312136489,1705666305802,-500.0,0.00023817,2]
[312136490,1705666305813,-2249.61,0.00023817,2]
[312136491,1705666305825,-500.0,0.00023817,2]
[312136492,1705666305837,-1700.24,0.00023817,2]
[312136493,1705666306045,-500.0,0.00023817,2]
[312136494,1705666306057,-500.0,0.00023817,2]
[312136495,1705666306070,-500.0,0.00023817,2]
[312136496,1705666306082,-500.0,0.00023817,2]
[312136497,1705666306094,-579.44,0.00023817,2]
[312136498,1705666306106,-453.7570127,0.00023817,2]
[312136499,1705666306119,-500.0,0.00023817,2]
[312136500,1705666306130,-500.0,0.00023817,2]
[312136501,1705666306141,-2381.28,0.00023817,2]
[312136502,1705666306153,-1446.94,0.00023817,2]
[312136503,1705666306166,-500.0,0.00023817,2]
[312136504,1705666306178,-500.0,0.00023817,2]
[312136505,1705666306189,-4056.5,0.00023817,2]
[312136506,1705666306200,-500.0,0.00023817,2]
[312136507,1705666306212,-500.0,0.00023817,2]
[312136508,1705666306223,-500.0,0.00023817,2]
[312136509,1705666306234,-2985.9,0.00023817,2]
[312136510,1705666306251,-500.0,0.00023817,2]
[312136511,1705666306262,-696.64,0.00023817,2]
[312136512,1705666306273,-500.0,0.00023817,2]
[312136513,1705666306285,-548.95465099,0.00023817,2]
[312136514,1705666306297,-4455.73,0.00023817,2]
[312136515,1705666306308,-158.19726828,0.00023817,2]
[312136516,1705666306319,-994.17,0.00023817,2]
[312136517,1705666306330,-698.84,0.00023817,2]
[312136518,1705666306343,-500.0,0.00023817,2]
[312136519,1705666306356,-500.0,0.00023817,2]
[312136520,1705666306368,-1513.75,0.00023817,2]
[312136521,1705666306379,-2003.87,0.00023817,2]
[312136522,1705666306391,-500.0,0.00023817,2]
[312136523,1705666306403,-748.63,0.00023817,2]
[312136524,1705666306415,-902.53,0.00023818,2]
[312136525,1705666306427,-703.38,0.00023818,2]
[312136526,1705666306438,-979.41,0.00023818,2]
[312136527,1705666306450,-631.03,0.00023818,2]
[312136528,1705666306461,-500.0,0.00023818,2]
[312136529,1705666306472,-529.79,0.00023818,2]
[312136530,1705666306484,-507.27,0.00023818,2]
[312136531,1705666306495,-594.0,0.00023818,2]
[312136532,1705666306507,-604.23,0.00023818,2]
[312136533,1705666306518,-505.24504413,0.00023818,2]
[312136534,1705666306530,-1297.18,0.00023818,2]
[312136535,1705666306541,-2265.29,0.00023818,2]
[312136536,1705666306554,-562.89,0.00023818,2]
[312136537,1705666306565,-500.0,0.00023818,2]
[312136538,1705666306577,-500.0,0.00023818,2]
[312136539,1705666306589,-500.0,0.00023818,2]
[312136540,1705666306602,-990.94,0.00023818,2]
[312136541,1705666306614,-614.26,0.00023818,2]
[312136542,1705666306626,-735.83,0.00023818,2]
[312136543,1705666306638,-856.19,0.00023818,2]
[312136544,1705666306650,-1419.84,0.00023818,2]
[312136545,1705666306662,-679.32,0.00023818,2]
[312136546,1705666306674,-680.33,0.00023818,2]
[312136547,1705666306686,-614.57,0.00023818,2]
[312136548,1705666306697,-1063.63,0.00023818,2]
[312136549,1705666306709,-1592.94,0.00023818,2]
[312136550,1705666306721,-500.0,0.00023818,2]
[312136551,1705666306733,-727.17,0.00023818,2]
[312136552,1705666306745,-903.46,0.00023818,2]
[312136553,1705666306758,-500.0,0.00023818,2]
[312136554,1705666306770,-500.0,0.00023818,2]
[312136555,1705666306781,-500.0,0.00023818,2]
[312136556,1705666306799,-1089.66,0.00023818,2]
[312136557,1705666306812,-617.46,0.00023818,2]
[312136558,1705666306918,-1111.8,0.00023818,2]
[312136559,1705666306973,-245.74216298,0.00023818,2]
[312136560,1705666306985,-1453.62,0.00023818,2]
[312136561,1705666306998,-637.4,0.00023818,2]
[312136562,1705666307011,-500.0,0.00023818,2]
[312136563,1705666307023,-1203.6,0.00023818,2]
[312136564,1705666307034,-1735.78,0.00023818,2]
[312136565,1705666307046,-500.0,0.00023818,2]
[312136566,1705666307058,-1641.44,0.00023818,2]
[312136567,1705666307071,-500.0,0.00023818,2]
[312136568,1705666307083,-522.53,0.00023818,2]
[312136569,1705666307095,-1160.79,0.00023818,2]
[312136570,1705666307106,-1647.35,0.00023818,2]
[312136571,1705666307118,-500.0,0.00023818,2]
[312136572,1705666307130,-837.65,0.00023818,2]
[312136573,1705666307141,-1818.93,0.00023818,2]
[312136574,1705666307153,-1042.11,0.00023818,2]
[312136575,1705666307165,-2027.65,0.00023818,2]
[312136576,1705666307178,-500.0,0.00023818,2]
[312136577,1705666307190,-500.0,0.00023818,2]
[312136578,1705666307202,-981.43,0.00023818,2]
[312136579,1705666307213,-500.0,0.00023818,2]
[312136580,1705666307225,-1018.32,0.00023818,2]
[312136581,1705666307237,-3340.96,0.00023818,2]
[312136582,1705666307248,-981.57,0.00023818,2]
[312136583,1705666307260,-6001.65,0.00023818,2]
[312136584,1705666307272,-924.24,0.00023818,2]
[312136585,1705666307285,-558.08,0.00023818,2]
[312136586,1705666307297,-1152.74,0.00023818,2]
[312136587,1705666307309,-500.0,0.00023818,2]
[312136588,1705666307320,-1251.53,0.00023818,2]
[312136589,1705666307333,-500.0,0.00023818,2]
[312136590,1705666307344,-1651.82,0.00023818,2]
[312136591,1705666307355,-609.46,0.00023818,2]
[312136592,1705666307367,-502.82,0.00023818,2]
[312136593,1705666307379,-1979.16,0.00023818,2]
[312136594,1705666307390,-500.0,0.00023818,2]
[312136595,1705666307401,-500.0,0.00023818,2]
[312136596,1705666307412,-1430.36,0.00023818,2]
[312136597,1705666307423,-542.04,0.00023818,2]
[312136598,1705666307435,-9723.53,0.00023818,2]
[312136599,1705666307447,-4403.92,0.00023818,2]
[312136600,1705666307457,-982.89,0.00023818,2]
[312136601,1705666307471,-1318.74,0.00023818,2]
[312136602,1705666307485,-646.54,0.00023818,2]
[312136603,1705666307497,-4083.32,0.00023818,2]
[312136604,1705666307509,-1199.37,0.00023818,2]
[312136605,1705666307520,-716.72,0.00023818,2]
[312136606,1705666307532,-875.53,0.00023818,2]
[312136607,1705666307543,-17230.42,0.00023818,2]
[312136608,1705666307554,-559.02,0.00023818,2]
[312136609,1705666307565,-753.81,0.00023818,2]
[312136610,1705666307576,-836.21,0.00023818,2]
[312136611,1705666307588,-3033.73,0.00023818,2]
[312136612,1705666307599,-500.0,0.00023818,2]
[312136613,1705666307611,-4579.41,0.00023818,2]
[312136614,1705666307622,-500.0,0.00023818,2]
[312136615,1705666307633,-811.94,0.00023818,2]
[312136616,1705666307644,-6926.76,0.00023818,2]
[312136617,1705666307655,-500.0,0.00023818,2]
[312136618,1705666307666,-1707.03,0.00023818,2]
[312136619,1705666307677,-1650.31,0.00023818,2]
[312136620,1705666307689,-5046.73,0.00023818,2]
[312136621,1705666307700,-2778.35,0.00023818,2]
[312136622,1705666307711,-1008.17,0.00023818,2]
[312136623,1705666307722,-196.71,0.00023818,2]
[312136624,1705666307734,-5761.46,0.00023818,2]
[312136625,1705666307744,-830.39,0.00023818,2]
[312136626,1705666307756,-500.0,0.00023818,2]
[312136627,1705666307768,-1035.37,0.00023818,2]
[312136628,1705666307779,-1166.82,0.00023818,2]
[312136629,1705666307791,-520.25,0.00023818,2]
[312136630,1705666307802,-11508.39,0.00023818,2]
[312136631,1705666307905,-730.77,0.00023818,2]
[312136632,1705666307919,-1529.43,0.00023818,2]
[312136633,1705666307930,-602.34,0.00023818,2]
[312136634,1705666307941,-2801.61,0.00023818,2]
[312136635,1705666307954,-596.08,0.00023818,2]
[312136636,1705666307965,-847.54,0.00023818,2]
[312136637,1705666307975,-500.0,0.00023818,2]
[312136638,1705666307986,-1217.77,0.00023818,2]
[312136639,1705666307997,-1307.02,0.00023818,2]
[312136640,1705666308008,-1964.39,0.00023818,2]
[312136641,1705666308020,-726.13,0.00023818,2]
[312136642,1705666308031,-2317.69,0.00023818,2]
[312136643,1705666308042,-2438.45,0.00023818,2]
[312136644,1705666308053,-1132.89,0.00023818,2]
[312136645,1705666308064,-500.0,0.00023818,2]
[312136646,1705666308076,-2244.99,0.00023818,2]
[312136647,1705666308087,-2276.25,0.00023818,2]
[312136648,1705666308098,-500.0,0.00023818,2]
[312136649,1705666308110,-2345.08,0.00023818,2]
[312136650,1705666308121,-1779.06,0.00023818,2]
[312136651,1705666308131,-1247.58,0.00023818,2]
[312136652,1705666308142,-1265.86,0.00023818,2]
[312136653,1705666308152,-4824.73,0.00023818,2]
[312136654,1705666308165,-1351.04,0.00023818,2]
[312136655,1705666308178,-500.0,0.00023819,2]
[312136656,1705666308189,-564.91,0.00023819,2]
[312136657,1705666308200,-507.0905928,0.00023819,2]
[312136658,1705666308212,-500.0,0.00023819,2]
[312136659,1705666308224,-502.41,0.00023819,2]
[312136660,1705666308235,-568.67,0.00023819,2]
[312136661,1705666308246,-500.0,0.00023819,2]
[312136662,1705666308258,-500.0,0.00023819,2]
[312136663,1705666308269,-294.64848262,0.00023819,2]
[312136664,1705666308281,-500.0,0.00023819,2]
[312136665,1705666308293,-500.0,0.00023819,2]
[312136666,1705666308305,-500.0,0.00023819,2]
[312136667,1705666308316,-500.0,0.00023819,2]
[312136668,1705666308327,-500.0,0.00023819,2]
[312136669,1705666308338,-579.96,0.00023819,2]
[312136670,1705666308349,-500.0,0.00023819,2]
[312136671,1705666308360,-514.75,0.00023819,2]
[312136672,1705666308373,-842.5,0.00023819,2]
[312136673,1705666308385,-500.0,0.00023819,2]
[312136674,1705666308397,-500.0,0.00023819,2]
[312136675,1705666308408,-500.0,0.00023819,2]
[312136676,1705666308420,-513.51008093,0.00023819,2]
[312136677,1705666308430,-500.0,0.00023819,2]
[312136678,1705666308440,-500.0,0.00023819,2]
[312136679,1705666308452,-500.0,0.00023819,2]
[312136680,1705666308463,-639.73,0.00023819,2]
[312136681,1705666308474,-1003.11,0.00023819,2]
[312136682,1705666308487,-500.0,0.00023819,2]
[312136683,1705666308498,-500.0,0.00023819,2]
[312136684,1705666308509,-169.70854545,0.00023819,2]
[312136685,1705666308520,-500.0,0.00023819,2]
[312136686,1705666308531,-500.0,0.00023819,2]
[312136687,1705666308542,-500.0,0.00023819,2]
[312136688,1705666308553,-500.0,0.00023819,2]
[312136689,1705666308565,-580.63900836,0.00023819,2]
[312136690,1705666308576,-500.0,0.00023819,2]
[312136691,1705666308586,-500.0,0.00023819,2]
[312136692,1705666308598,-500.0,0.00023819,2]
[312136693,1705666308609,-500.0,0.00023819,2]
[312136694,1705666308620,-500.0,0.00023819,2]